Workbook

Sheet 1
A1: Школа | B1: - | E1: Отд./корп | I1: День
A3: Прием пищи | B3: Раздел | C3: № рец. | D3: Блюдо | E3: Выход, г | F3: Цена | G3: Калорийность | H3: Белки | I3: Жиры | J3: Углеводы
A4: Завтрак | B4: гор.блюдо
B5: гор.напиток
B6: хлеб
A9: Завтрак 2 | B9: фрукты
A12: Обед | B12: закуска
B13: 1 блюдо
B14: 2 блюдо
B15: гарнир
B16: сладкое
B17: хлеб бел.
B18: хлеб черн.

Sheet Лист1
A1: Школа | B1: МОБУ СОШ с.Рятамак | E1: Отд./корп | F1: неделя 1 | I1: День | J1: понедельник
A3: Прием пищи | B3: Раздел | C3: № рец. | D3: Блюдо | E3: Выход, г | F3: Цена | G3: Калорийность | H3: Белки | I3: Жиры | J3: Углеводы
A4: Завтрак | B4: гор.блюдо | C4: 82 | D4: Котлета рубленая из птицы с овощн.подливом | E4: 90 | F4: 52.81 | G4: 178 | H4: 7.5 | I4: 9.3 | J4: 8.72
B5: гор.блюдо | C5: 302.01 | D5: Каша гречневая вязкая с маслом | E5: 160 | F5: 10.75 | G5: 181.6 | H5: 4.81 | I5: 8.49 | J5: 21.54
B6: гор.напиток | C6: 282.11 | D6: Чай витаминизированный | E6: 200 | F6: 4.28 | G6: 39 | H6: 0 | I6: 0 | J6: 9.7
B7: хлеб | C7: 420.06 | D7: Хлеб пшен.обогащ.витам.для д/п | E7: 50 | F7: 3.25 | G7: 130 | H7: 4 | I7: 0.5 | J7: 27.5
B8: Итого: | E8: =SUM(E4:E7) -> 500 | F8: =SUM(F4:F7) -> 71.09 | G8: =SUM(G4:G7) -> 528.6 | H8: 16.31 | I8: 18.29 | J8: 67.46
A9: Завтрак 2 | B9: фрукты
A12: Обед | B12: закуска
B13: 1 блюдо | C13: 53.42 | D13: Щи из свежей капусты со сметаной | E13: 210 | F13: 10.00 | G13: 80.73 | H13: 1.68 | I13: 4.86 | J13: 7.36
B14: 2 блюдо | C14: 233.23 | D14: Мясо птицы,припущенное в томатном соусе | E14: 90 | F14: 53.19 | G14: 251.97 | H14: 19.83 | I14: 17.99 | J14: 2.93
B15: гарнир | C15: 211.05 | D15: Макаронные изделия отварные с маслом | E15: 155 | F15: 9.60 | G15: 210.5 | H15: 5.82 | I15: 4.31 | J15: 37.08
B16: напиток | C16: 283 | D16: Чай с сахаром | E16: 200 | F16: 1.74 | G16: 39.9 | H16: 0 | I16: 0 | J16: 9.98
B17: хлеб бел. | C17: 420.02 | D17: Хлеб пшен.обогащ.витам.для д/п | E17: 40 | F17: 2.60 | G17: 104 | H17: 3.2 | I17: 0.4 | J17: 22
B18: хлеб черн. | C18: 421.11 | D18: Хлеб ржано-пшеничный для д/ п | E18: 40 | F18: 2.60 | G18: 88 | H18: 3.2 | I18: 0.4 | J18: 18.4
B19: Итого: | E19: =SUM(E13:E18) -> 735 | F19: =SUM(F13:F18) -> 79.73 | G19: =SUM(G13:G18) -> 775.1 | H19: =SUM(H13:H18) -> 33.73 | I19: 27.96 | J19: 97.75
B21: Итого за день: | E21: =E8+E19 -> 1235 | F21: 150.82 | G21: 1303.7 | H21: 50.04 | I21: 46.25 | J21: 165.21

Sheet Лист2
A1: Школа | B1: - | E1: Отд./корп | F1: неделя 1 | I1: День | J1: вторник
A3: Прием пищи | B3: Раздел | C3: № рец. | D3: Блюдо | E3: Выход, г | F3: Цена | G3: Калорийность | H3: Белки | I3: Жиры | J3: Углеводы
A4: Завтрак | B4: гор.блюдо | C4: 528 | D4: Тефтели куриные в томатном соусе | E4: 100 | F4: 52.81 | G4: 145 | H4: 8.2 | I4: 8.52 | J4: 3.54
B5: гор.блюдо | C5: 138.06 | D5: Картофельное пюре | E5: 180 | F5: 11.92 | G5: 177.19 | H5: 3.95 | I5: 6.09 | J5: 26.5
B6: гор.напиток | C6: 285 | D6: Чай с лимоном и сахаром | E6: 200 | F6: 3.11 | G6: 42.28 | H6: 0.06 | I6: 0.01 | J6: 10.19
B7: хлеб | C7: 420.06 | D7: Хлеб пшен.обогащ.витам.для д/п | E7: 50 | F7: 3.25 | G7: 130 | H7: 4 | I7: 0.5 | J7: 27.5
B8: Итого: | E8: =SUM(E4:E7) -> 530 | F8: =SUM(F4:F7) -> 71.09 | G8: =SUM(G4:G7) -> 494.47 | H8: 16.21 | I8: 15.12 | J8: 67.73
A9: Завтрак 2 | B9: фрукты
A12: Обед | B12: закуска | C12: 25.09 | D12: Салат из свёклы с яблоками | E12: 60 | F12: 8.95 | G12: 54.96 | H12: 0.68 | I12: 3.11 | J12: 5.95
B13: 1 блюдо | C13: 129.08 | D13: Суп картофельный с горохом и гренками | E13: 215 | F13: 10.13 | G13: 175.69 | H13: 6.62 | I13: 3.88 | J13: 28.57
B14: 2 блюдо | C14: 118.08 | D14: Рагу овощное с отварным мясом | E14: 160 | F14: 35.30 | G14: 237.8 | H14: 12.96 | I14: 15.24 | J14: 12.02
B15: гарнир | E15: 0 | F15: 0.00 | G15: 0 | H15: 0 | I15: 0 | J15: 0
B16: сладкое | C16: 305.11 | D16: Витаминизированный кисель | E16: 200 | F16: 19.50 | G16: 95 | H16: 0 | I16: 0 | J16: 23.5
B17: хлеб бел. | C17: 420.09 | D17: Хлеб пшен.обогащ.витам.для д/п | E17: 25 | F17: 2.25 | G17: 65 | H17: 2 | I17: 0.25 | J17: 13.75
B18: хлеб черн. | C18: 421.11 | D18: Хлеб ржано-пшеничный для д/п | E18: 40 | F18: 3.60 | G18: 88 | H18: 3.2 | I18: 0.4 | J18: 18.4
B19: Итого: | E19: =SUM(E12:E18) -> 700 | F19: =SUM(F12:F18) -> 79.73 | G19: 716.45 | H19: 25.46 | I19: 22.88 | J19: 102.19
B20: Итого за день | E20: =E8+E19 -> 1230 | F20: =F8+F19 -> 150.82 | G20: 1210.92 | H20: =H8+H19 -> 41.67 | I20: =I8+I19 -> 38 | J20: =J8+J19 -> 169.92

Sheet Лист3
A1: Школа | B1: - | E1: Отд./корп | F1: неделя 1 | I1: День | J1: среда
A3: Прием пищи | B3: Раздел | C3: № рец. | D3: Блюдо | E3: Выход, г | F3: Цена | G3: Калорийность | H3: Белки | I3: Жиры | J3: Углеводы
A4: Завтрак | B4: гор.блюдо | C4: 435 | D4: Суфле творожное запечённое со сгущ.мол. | E4: 170 | F4: 57.15 | G4: 361 | H4: 22.84 | I4: 16.04 | J4: 31.05
B5: гор.напиток | C5: 283 | D5: Чай с сахаром | E5: 200 | F5: 1.74 | G5: 39.9 | H5: 0 | I5: 0 | J5: 9.98
B6: хлеб | C6: 1.1 | D6: Хлеб пшен.обогащ.витам. для д/п | E6: 30 | F6: 1.7 | G6: 78 | H6: 2.4 | I6: 0.3 | J6: 16.5
B7: фрукты | C7: 38 | D7: Яблоко | E7: 100 | F7: 10.5 | G7: 47 | H7: 0.4 | I7: 0.4 | J7: 9.8
E8: 0 | F8: 0 | G8: 0 | H8: 0 | I8: 0 | J8: 0
A9: Завтрак 2 | B9: Итого: | E9: =SUM(E4:E8) -> 500 | F9: =SUM(F4:F8) -> 71.09 | G9: =SUM(G4:G8) -> 525.9 | H9: 25.64 | I9: 16.74 | J9: 67.33
B10: фрукты
A12: Обед
B13: закуска
B14: 1 блюдо | C14: 56.13 | D14: Борщ с капустой и картоф.со смет. | E14: 260 | F14: 10.36 | G14: 100.62 | H14: 2.03 | I14: 5.67 | J14: 10.16
B15: 2 блюдо | C15: 445.35 | D15: Котлеты мясные с томат.соусом | E15: 90 | F15: 48.69 | G15: 178.98 | H15: 9.87 | I15: 11.79 | J15: 8.34
B16: гарнир | C16: 175 | D16: Каша гречневая вязкая с маслом | E16: 185 | F16: 10.84 | G16: 171.65 | H16: 5.71 | I16: 5.11 | J16: 25.76
B17: напиток | C17: 283 | D17: Чай с сахаром | E17: 200 | F17: 1.74 | G17: 39.9 | H17: 0 | I17: 0 | J17: 9.98
B18: хлеб бел. | C18: 420.06 | D18: Хлеб пшен.обогащ.витам.для д/п | E18: 50 | F18: 4.50 | G18: 130 | H18: 4 | I18: 0.5 | J18: 27.5
B19: хлеб черн. | C19: 421.11 | D19: Хлеб ржано-пшеичный для д/п | E19: 40 | F19: 3.60 | G19: 88 | H19: 3.2 | I19: 0.4 | J19: 18.4
B20: Итого: | E20: =SUM(E14:E19) -> 825 | F20: =SUM(F14:F19) -> 79.73 | G20: 709.15 | H20: 24.81 | I20: 23.47 | J20: 100.14
B21: Итого за день: | E21: =E9+E20 -> 1325 | F21: 150.82 | G21: 1235.05 | H21: 50.45 | I21: 40.21 | J21: 167.47

Sheet Лист4
A1: Школа | E1: Отд./корп | F1: неделя 1 | I1: День | J1: четверг
A3: Прием пищи | B3: Раздел | C3: № рец. | D3: Блюдо | E3: Выход, г | F3: Цена | G3: Калорийность | H3: Белки | I3: Жиры | J3: Углеводы
A4: Завтрак | B4: гор.блюдо | C4: 527пф | D4: Тефтели из говядины с томатным соусом | E4: 100 | F4: 55.5 | G4: 180.64 | H4: 8.76 | I4: 12.21 | J4: 8.85
B5: гор.блюдо | C5: 211.05 | D5: Макаронные изделия отварные с маслом | E5: 155 | F5: 10.6 | G5: 210.5 | H5: 5.82 | I5: 4.31 | J5: 37.08
B6: гор.напиток | C6: 283 | D6: Чай с сахаром | E6: 200 | F6: 1.74 | G6: 39.9 | H6: 0 | I6: 0 | J6: 9.98
B7: хлеб | C7: 420.06 | D7: Хлеб пшен.обогащ.витам.для д/п | E7: 50 | F7: 3.25 | G7: 130 | H7: 4 | I7: 0.5 | J7: 27.5
E8: =SUM(E4:E7) -> 505 | F8: 71.09 | G8: 561.04 | H8: 18.58 | I8: 17.02 | J8: 83.41
A9: Завтрак 2 | B9: фрукты
A12: Обед | B12: закуска
B13: 1 блюдо | C13: 450.13 | D13: Суп картофельный с клёцками | E13: 250 | F13: 8.86 | G13: 110.91 | H13: 1.72 | I13: 6.27 | J13: 11.83
B14: 2 блюдо | C14: 53пф | D14: Котлета рыбная с томатным соусом | E14: 90 | F14: 41.71 | G14: 120 | H14: 13 | I14: 3.1 | J14: 9.9
B15: гарнир | C15: 611.02 | D15: Рис припущенный | E15: 180 | F15: 19.32 | G15: 275.89 | H15: 4.55 | I15: 7.88 | J15: 46.75
B16: напиток | C16: 283 | D16: Чай с сахаром | E16: 200 | F16: 1.74 | G16: 39.9 | H16: 0 | I16: 0 | J16: 9.98
B17: хлеб бел. | C17: 420.06 | D17: Хлеб пшен.обогащ.витам.для д/п | E17: 50 | F17: 4.50 | G17: 130 | H17: 4 | I17: 0.5 | J17: 27.5
B18: хлеб черн. | C18: 421.11 | D18: Хлеб ржано-пшеичный для д/п | E18: 40 | F18: 3.60 | G18: 88 | H18: 3.2 | I18: 0.4 | J18: 18.4
E19: =SUM(E13:E18) -> 810 | F19: =SUM(F13:F18) -> 79.73 | G19: 764.7 | H19: 26.47 | I19: 18.15 | J19: 124.36
B20: Итого за день: | E20: =E8+E19 -> 1315 | F20: 150.82 | G20: 1325.74 | H20: 45.05 | I20: 35.17 | J20: 207.77

Sheet Лист5
A1: Школа | B1: - | E1: Отд./корп | F1: неделя 1 | I1: День | J1: пятница
A3: Прием пищи | B3: Раздел | C3: № рец. | D3: Блюдо | E3: Выход, г | F3: Цена | G3: Калорийность | H3: Белки | I3: Жиры | J3: Углеводы
A4: Завтрак | B4: гор.блюдо | C4: 181.39 | D4: Каша рисовая молочная вязкая с маслом | E4: 160 | F4: 20.49 | G4: 237.47 | H4: 4.6 | I4: 9.96 | J4: 32.25
B5: гор.блюдо | C5: ТБ0029 | D5: Сырники из творога с повидлом | E5: 85 | F5: 33.25 | G5: 187 | H5: 11.4 | I5: 10.5 | J5: 11.7
B6: гор.напиток | C6: 282.11 | D6: Чай витаминизированный | E6: 200 | F6: 4.28 | G6: 39 | H6: 0 | I6: 0 | J6: 9.7
B7: хлеб | C7: 420.05 | D7: Хлеб пшен.обогащ.витам.для д/п с сыром | E7: 55 | F7: 13.07 | G7: 152 | H7: 6.23 | I7: 3.11 | J7: 24.75
E8: =SUM(E4:E7) -> 500 | F8: 71.09 | G8: 615.47 | H8: 22.23 | I8: 23.57 | J8: 78.4
A9: Завтрак 2 | B9: фрукты
A12: Обед | B12: закуска
B13: 1 блюдо | C13: 54.47 | D13: Рассольник ленинградский со сметаной | E13: 210 | F13: 10.44 | G13: 109.77 | H13: 2.09 | I13: 5.01 | J13: 13.9
B14: 2 блюдо | C14: 502.5 | D14: Биточки из мяса птицы с томатным соусом | E14: 100 | F14: 39.10 | G14: 162.58 | H14: 10.05 | I14: 9.58 | J14: 9.1
B15: гарнир | C15: 138.06 | D15: Картофельное пюре | E15: 180 | F15: 20.80 | G15: 177.19 | H15: 3.95 | I15: 6.09 | J15: 26.5
B16: напиток | C16: 283 | D16: Чай с сахаром | E16: 200 | F16: 1.74 | G16: 39.9 | H16: 0 | I16: 0 | J16: 9.98
B17: хлеб бел. | C17: 420.06 | D17: Хлеб пшен.обогащ.витам.для д/п | E17: 50 | F17: 4.05 | G17: 130 | H17: 4 | I17: 0.5 | J17: 27.5
B18: хлеб черн. | C18: 421.11 | D18: Хлеб ржано-пшеничный для д/п | E18: 40 | F18: 3.60 | G18: 88 | H18: 3.2 | I18: 0.4 | J18: 18.4
E19: =SUM(E13:E18) -> 780 | F19: =SUM(F13:F18) -> 79.73 | G19: 707.44 | H19: 23.29 | I19: 21.58 | J19: 105.38
B20: Итого за день: | E20: =E8+E19 -> 1280 | F20: 150.82 | G20: 1322.91 | H20: 45.52 | I20: 45.15 | J20: 183.78

Sheet Лист6
A1: Школа | B1: - | E1: Отд./корп | F1: неделя 2 | I1: День | J1: понедельник
A3: Прием пищи | B3: Раздел | C3: № рец. | D3: Блюдо | E3: Выход, г | F3: Цена | G3: Калорийность | H3: Белки | I3: Жиры | J3: Углеводы
A4: Завтрак | B4: гор.блюдо | C4: 211.56 | D4: Макаронные изделия с тёртым сыром | E4: 160 | F4: 30.36 | G4: 283.91 | H4: 9.43 | I4: 12.55 | J4: 33.06
B5: гор.напиток | C5: 269 | D5: Какао с молоком | E5: 200 | F5: 14.69 | G5: 153 | H5: 3.7 | I5: 3.9 | J5: 26
B6: хлеб | C6: 420.06 | D6: Хлеб пшен.обогащ.витам.для д/п,масло сливочное | E6: 58 | F6: 15.54 | G6: 182.88 | H6: 4.06 | I6: 6.3 | J6: 27.6
B7: фрукты | C7: 38 | D7: Яблоко | E7: 100 | F7: 10.50 | G7: 47 | H7: 0.4 | I7: 0.4 | J7: 9.8
D8: Итого: | E8: =SUM(E4:E7) -> 518 | F8: =SUM(F4:F7) -> 71.09 | G8: 666.79 | H8: 17.59 | I8: 23.15 | J8: 96.46
A9: Завтрак 2 | B9: фрукты
A12: Обед | B12: закуска
B13: 1 блюдо | C13: 56.21 | D13: Суп с мелкошинкованными овощами со сметаной | E13: 260 | F13: 11.89 | G13: 107.06 | H13: 2.14 | I13: 5.76 | J13: 11.48
B14: 2 блюдо | C14: 131.8 | D14: Плов из мяса птицы(филе) | E14: 180 | F14: 58.90 | G14: 359.21 | H14: 15.21 | I14: 16.65 | J14: 37.28
B15: гарнир | E15: 0 | F15: 0.00 | G15: 0 | H15: 0 | I15: 0 | J15: 0
B16: напиток | C16: 283 | D16: Чай с сахаром | E16: 200 | F16: 1.74 | G16: 39.9 | H16: 0 | I16: 0 | J16: 9.98
B17: хлеб бел. | C17: 420.05 | D17: Хлеб пшен.обогащ.витам.для д/п | E17: 45 | F17: 3.60 | G17: 117 | H17: 3.6 | I17: 0.45 | J17: 24.75
B18: хлеб черн. | C18: 421.11 | D18: Хлеб ржано-пшеничный для д/п | E18: 40 | F18: 3.60 | G18: 88 | H18: 3.2 | I18: 0.4 | J18: 18.4
E19: =SUM(E13:E18) -> 725 | F19: =SUM(F13:F18) -> 79.73 | G19: 711.17 | H19: 24.15 | I19: 23.26 | J19: 101.89
E20: 1238 | F20: =F8+F19 -> 150.82 | G20: =G8+G19 -> 1377.96 | H20: =H8+H19 -> 41.74 | I20: =I8+I19 -> 46.41 | J20: =J8+J19 -> 198.35

Sheet Лист7
A1: Школа | B1: - | E1: Отд./корп | F1: неделя 2 | I1: День | J1: вторник
A3: Прием пищи | B3: Раздел | C3: № рец. | D3: Блюдо | E3: Выход, г | F3: Цена | G3: Калорийность | H3: Белки | I3: Жиры | J3: Углеводы
A4: Завтрак | B4: гор.блюдо | C4: 527пф | D4: Тефтели из говядины с томатным соусом | E4: 100 | F4: 56.46 | G4: 180.64 | H4: 8.76 | I4: 12.21 | J4: 8.85
B5: гор.блюдо | C5: 302 | D5: Каша гречневая вязкая с маслом | E5: 155 | F5: 10.84 | G5: 148.55 | H5: 4.77 | I5: 4.86 | J5: 21.48
B6: хлеб | C6: 420.05 | D6: Хлеб пшен.обогащ.витам.для д/п | E6: 45 | F6: 2.05 | G6: 117 | H6: 3.6 | I6: 0.5 | J6: 25
B7: гор.напиток | C7: 283 | D7: Чай с сахаром | E7: 200 | F7: 1.74 | G7: 39.9 | H7: 0 | I7: 0 | J7: 9.98
D9: Итого: | E9: =SUM(E4:E8) -> 500 | F9: =SUM(F4:F8) -> 71.09 | G9: 486.09 | H9: 17.13 | I9: 17.57 | J9: 65.31
A10: Завтрак 2 | B10: фрукты
A13: Обед | B13: закуска | C13: 25.24 | D13: Салат из свёклы с растительным маслом | E13: 80 | F13: 7.94 | G13: 102 | H13: 1.49 | I13: 6.76 | J13: 8.77
B14: 1 блюдо | C14: 66.63 | D14: Суп лапша | E14: 200 | F14: 3.53 | G14: 97.08 | H14: 2.22 | I14: 4.23 | J14: 12.49
B15: 2 блюдо | C15: 97.64 | D15: Жаркое по-домашнему | E15: 180 | F15: 58.42 | G15: 257.88 | H15: 11.56 | I15: 14.11 | J15: 21.08
B16: гарнир | E16: 0 | F16: 0.00 | G16: 0 | H16: 0 | I16: 0 | J16: 0
B17: напиток | C17: 283 | D17: Чай с сахаром | E17: 200 | F17: 1.74 | G17: 39.9 | H17: 0 | I17: 0 | J17: 9.98
B18: хлеб бел. | C18: 420.06 | D18: Хлеб пшен.обогащ.витам.для д/п | E18: 50 | F18: 4.50 | G18: 130 | H18: 4 | I18: 0.5 | J18: 27.5
B19: хлеб черн. | C19: 421.11 | D19: Хлеб ржано-пшеничный для д/п | E19: 40 | F19: 3.60 | G19: 88 | H19: 3.2 | I19: 0.4 | J19: 18.4
E20: =SUM(E13:E19) -> 750 | F20: =SUM(F13:F19) -> 79.73 | G20: =SUM(G13:G19) -> 714.86 | H20: 22.47 | I20: =SUM(I13:I19) -> 26 | J20: =SUM(J13:J19) -> 98.22
E21: =E9+E20 -> 1250 | F21: 150.82 | G21: 1200.95 | H21: 39.6 | I21: 43.57 | J21: 163.53

Sheet Лист8
A1: Школа | B1: - | E1: Отд./корп | F1: неделя 2 | I1: День | J1: среда
A3: Прием пищи | B3: Раздел | C3: № рец. | D3: Блюдо | E3: Выход, г | F3: Цена | G3: Калорийность | H3: Белки | I3: Жиры | J3: Углеводы
A4: Завтрак | B4: гор.блюдо | C4: 131.79 | D4: Плов из мяса птицы(филе) | E4: 170 | F4: 46.01 | G4: 339.82 | H4: 14.37 | I4: 15.78 | J4: 35.23
B5: гор.напиток | C5: 283 | D5: Чай с сахаром | E5: 200 | F5: 1.74 | G5: 39.9 | H5: 0 | I5: 0 | J5: 9.98
B6: хлеб | C6: 1.1 | D6: Хлеб пшен.обогащ.витам.для д/п с маслом | E6: 38 | F6: 10.74 | G6: 130.88 | H6: 2.46 | I6: 6.1 | J6: 16.6
B7: фрукты | C7: 38 | D7: Яблоко | E7: 120 | F7: 12.6 | G7: 56 | H7: 0.48 | I7: 0.48 | J7: 11.76
E8: =SUM(E4:E7) -> 528 | F8: =SUM(F4:F7) -> 71.09 | G8: 566.6 | H8: 17.31 | I8: 22.36 | J8: 73.57
A9: Завтрак 2
A12: Обед | B12: закуска
B13: 1 блюдо | C13: 53.39 | D13: Щи из свежей капусты со сметаной | E13: 205 | F13: 9.34 | G13: 72.63 | H13: 1.55 | I13: 4.11 | J13: 7.18
B14: 2 блюдо | C14: 96.19 | D14: Гуляш | E14: 90 | F14: 50.85 | G14: 203.03 | H14: 13.78 | I14: 15.03 | J14: 3.18
B15: гарнир | C15: 211.05 | D15: Макаронные изделия отварные с маслом | E15: 155 | F15: 10.60 | G15: 210.5 | H15: 5.82 | I15: 4.31
B16: напиток | C16: 283 | D16: Чай с сахаром | E16: 200 | F16: 1.74 | G16: 39.9 | H16: 0 | I16: 0 | J16: 9.98
B17: хлеб бел. | C17: 420.02 | D17: Хлеб пшен.обогащ.витам.для д/п | E17: 40 | F17: 3.60 | G17: 104 | H17: 3.2 | I17: 0.4 | J17: 22
B18: хлеб черн. | C18: 421.11 | D18: Хлеб ржано-пшеничный для д/п | E18: 40 | F18: 3.60 | G18: 88 | H18: 3.2 | I18: 0.4 | J18: 18.4
E19: =SUM(E12:E18) -> 730 | F19: =SUM(F13:F18) -> 79.73 | G19: 718.06 | H19: 27.55 | I19: 24.25 | J19: 60.74
E20: =E8+E19 -> 1258 | F20: 150.82 | G20: 1284.66 | H20: 44.86 | I20: 46.61 | J20: 134.31

Sheet Лист9
A1: Школа | B1: - | E1: Отд./корп | F1: неделя 2 | I1: День | J1: четверг
A3: Прием пищи | B3: Раздел | C3: № рец. | D3: Блюдо | E3: Выход, г | F3: Цена | G3: Калорийность | H3: Белки | I3: Жиры | J3: Углеводы
A4: Завтрак | B4: гор.блюдо | C4: 445.35 | D4: Котлеты мясные с томатным соусом | E4: 90 | F4: 44.44 | G4: 178.98 | H4: 9.87 | I4: 11.79 | J4: 8.34
B5: гор.блюдо | C5: 138.06 | D5: Картофельное пюре | E5: 180 | F5: 11.92 | G5: 177.19 | H5: 3.95 | I5: 6.09 | J5: 26.5
B6: хлеб | C6: 420.02 | D6: Хлеб пшен.обогащ.витам.для д/п с сыром | E6: 50 | F6: 11.62 | G6: 139 | H6: 5.83 | I6: 3.06 | J6: 22
B7: гор.напиток | C7: 285 | D7: Чай с лимоном и сахаром | E7: 200 | F7: 3.11 | G7: 42.28 | H7: 0.06 | I7: 0.01 | J7: 10.19
D8: Итого: | E8: =SUM(E4:E7) -> 520 | F8: =SUM(F4:F7) -> 71.09 | G8: 537.45 | H8: 19.71 | I8: 20.95 | J8: 67.03
A9: Завтрак 2 | B9: фрукты
A12: Обед | B12: закуска | C12: 2.1 | D12: Салат из белокоч.капусты с морковью | E12: 60 | F12: 7.64 | G12: 62.12 | H12: 1.38 | I12: 3.08 | J12: 7.01
B13: 1 блюдо | C13: 67.32 | D13: Свёкольник со сметаной | E13: 210 | F13: 10.67 | G13: 112.75 | H13: 2.25 | I13: 4.93 | J13: 14.74
B14: 2 блюдо | C14: 54пф | D14: Котлеты рыбные с томатным соусом | E14: 100 | F14: 23.52 | G14: 139 | H14: 12.12 | I14: 2.86 | J14: 16.07
B15: гарнир | C15: 302.01 | D15: Каша гречневая вязкая с маслом | E15: 160 | F15: 10.75 | G15: 181.6 | H15: 4.81 | I15: 8.49 | J15: 21.54
B16: сладкое | C16: 305.11 | D16: Витаминизированный кисель | E16: 200 | F16: 19.50 | G16: 95 | H16: 0 | I16: 0 | J16: 23.5
B17: хлеб бел. | C17: 420.05 | D17: Хлеб пшен.обогащ.витам.для д/п | E17: 45 | F17: 4.05 | G17: 117 | H17: 3.6 | I17: 0.45 | J17: 24.75
B18: хлеб черн. | C18: 421.11 | D18: Хлеб ржано-пшеничный для д/п | E18: 40 | F18: 3.60 | G18: 88 | H18: 3.2 | I18: 0.4 | J18: 18.4
E19: =SUM(E12:E18) -> 815 | F19: =SUM(F12:F18) -> 79.73 | G19: 795.47 | H19: 27.36 | I19: 20.21 | J19: 126.01
E20: =E8+E19 -> 1335 | F20: 150.82 | G20: 1332.92 | H20: 47.07 | I20: 41.16 | J20: 193.04

Sheet Лист10
A1: Школа | B1: =-Ли ->  | E1: Отд./корп | F1: неделя 2 | I1: День | J1: пятница
A3: Прием пищи | B3: Раздел | C3: № рец. | D3: Блюдо | E3: Выход, г | F3: Цена | G3: Калорийность | H3: Белки | I3: Жиры | J3: Углеводы
A4: Завтрак | B4: гор.блюдо | C4: 493.02 | D4: Каша молочная "Дружба"с маслом | E4: 155 | F4: 19.68 | G4: 185.91 | H4: 4.86 | I4: 6.72 | J4: 26.35
B5: гор.блюдо | C5: ТБ0029 | D5: Сырники из творога с повидлом | E5: 85 | F5: 33.25 | G5: 187 | H5: 11.4 | I5: 10.5 | J5: 11.7
B6: гор.напиток | C6: 283 | D6: Чай с сахаром | E6: 200 | F6: 1.74 | G6: 39.9 | H6: 0 | I6: 0 | J6: 9.98
B7: хлеб | C7: 420.02 | D7: Хлеб пшен.обогащ.витам.для д/п масло, сыр | E7: 60 | F7: 16.42 | G7: 205.1 | H7: 5.91 | I7: 10.31 | J7: 22.13
D9: Итого: | E9: =SUM(E4:E8) -> 500 | F9: 71.09 | G9: 617.91 | H9: 22.17 | I9: 27.53 | J9: 70.16
A10: Завтрак 2 | B10: фрукты
A13: Обед | B13: закуска
B14: 1 блюдо | C14: 129.2 | D14: Суп картофельный с горохом | E14: 250 | F14: 9.50 | G14: 142.91 | H14: 5.91 | I14: 4.55 | J14: 19.49
B15: 2 блюдо | C15: 502.53 | D15: Биточки из мяса птицы с томатным соусом | E15: 90 | F15: 47.51 | G15: 159.02 | H15: 9.95 | I15: 9.48 | J15: 8.57
B16: гарнир | C16: 211.47 | D16: Макаронные изделия отварные с маслом | E16: 160 | F16: 10.50 | G16: 243.55 | H16: 5.86 | I16: 7.93 | J16: 37.14
B17: напиток | C17: 294.01 | D17: Компот из свежих плодов | E17: 200 | F17: 5.02 | G17: 78.65 | H17: 0.16 | I17: 0.16 | J17: 18.89
B18: хлеб бел. | C18: 420.02 | D18: Хлеб пшен.обогащ.витам.для д/п | E18: 40 | F18: 3.60 | G18: 104 | H18: 3.2 | I18: 0.4 | J18: 22
B19: хлеб черн. | C19: 421.11 | D19: Хлеб ржано-пшеничный для д/п | E19: 40 | F19: 3.60 | G19: 88 | H19: 3.2 | I19: 0.4 | J19: 18.4
E20: =SUM(E14:E19) -> 780 | F20: =SUM(F14:F19) -> 79.73 | G20: 816.13 | H20: 28.28 | I20: 22.92 | J20: 124.49
E21: =E9+E20 -> 1280 | F21: 150.82 | G21: 1434.04 | H21: 50.45 | I21: 50.45 | J21: 194.65
